[Event "Titled Tuesday Blitz November 14 Late 2023"]
[White "Hajiyev, Kanan"]
[Black "Clawitter, Craig"]
[WhiteFideId "13404148"]
[BlackFideId "2023105"]
[WhiteElo "2493"]
[BlackElo "2283"]
[Result "1-0"]
[Round "4"]
[TimeControl "180+1"]
[Date "2023.11.14"]
[WhiteClock "0:00:41"]
[BlackClock "0:00:06"]
[Board "129"]

1. d4 {[%clk 0:03:00]}  e6 {[%clk 0:02:59]} 2. Nf3 {[%clk 0:03:01]}  Nf6 {[%clk 0:02:58]} 3. c4 {[%clk 0:03:02]}  d5 {[%clk 0:02:58]} 4. cxd5 {[%clk 0:03:03]}  exd5 {[%clk 0:02:59]} 5. Nc3 {[%clk 0:03:04]}  c6 {[%clk 0:02:59]} 6. Qc2 {[%clk 0:03:05]}  Be7 {[%clk 0:02:59]} 7. Bf4 {[%clk 0:03:05]}  O-O {[%clk 0:03:00]} 8. e3 {[%clk 0:03:05]}  Nbd7 {[%clk 0:02:59]} 9. Bd3 {[%clk 0:03:06]}  Re8 {[%clk 0:02:59]} 10. O-O {[%clk 0:03:06]}  Nf8 {[%clk 0:02:58]} 11. h3 {[%clk 0:03:06]}  Ne6 {[%clk 0:02:58]} 12. Be5 {[%clk 0:03:06]}  g6 {[%clk 0:02:57]} 13. Rab1 {[%clk 0:03:07]}  a5 {[%clk 0:02:36]} 14. a3 {[%clk 0:03:06]}  Bd6 {[%clk 0:02:32]} 15. b4 {[%clk 0:03:04]}  Ng7 {[%clk 0:02:31]} 16. Rfc1 {[%clk 0:02:51]}  Bf5 {[%clk 0:02:24]} 17. Bxd6 {[%clk 0:02:40]}  Qxd6 {[%clk 0:02:23]} 18. Ne5 {[%clk 0:02:41]}  Bxd3 {[%clk 0:01:55]} 19. Qxd3 {[%clk 0:02:32]}  axb4 {[%clk 0:01:52]} 20. axb4 {[%clk 0:02:31]}  b5 {[%clk 0:01:38]} 21. Ne2 {[%clk 0:02:13]}  Ra6 {[%clk 0:01:33]} 22. Rc2 {[%clk 0:02:03]}  Nd7 {[%clk 0:01:28]} 23. Nxd7 {[%clk 0:01:50]}  Qxd7 {[%clk 0:01:28]} 24. Qc3 {[%clk 0:01:45]}  Nf5 {[%clk 0:01:21]} 25. Nf4 {[%clk 0:01:46]}  Nd6 {[%clk 0:01:12]} 26. Nd3 {[%clk 0:01:46]}  Qa7 {[%clk 0:01:02]} 27. Qc5 {[%clk 0:01:43]}  Nc4 {[%clk 0:00:59]} 28. Re2 {[%clk 0:01:20]}  Ra1 {[%clk 0:00:36]} 29. Qxa7 {[%clk 0:01:14]}  Rxa7 {[%clk 0:00:37]} 30. Kf1 {[%clk 0:01:08]}  Rea8 {[%clk 0:00:37]} 31. Ne5 {[%clk 0:01:01]}  Nxe5 {[%clk 0:00:34]} 32. dxe5 {[%clk 0:01:02]}  Ra1 {[%clk 0:00:34]} 33. Rb2 {[%clk 0:00:57]}  R8a2 {[%clk 0:00:27]} 34. Rxa1 {[%clk 0:00:51]}  Rxb2 {[%clk 0:00:27]} 35. Rc1 {[%clk 0:00:49]}  Rxb4 {[%clk 0:00:22]} 36. Rxc6 {[%clk 0:00:49]}  Re4 {[%clk 0:00:20]} 37. Rb6 {[%clk 0:00:50]}  Rxe5 {[%clk 0:00:20]} 38. Rxb5 {[%clk 0:00:51]}  Kf8 {[%clk 0:00:18]} 39. Ke2 {[%clk 0:00:50]}  f6 {[%clk 0:00:17]} 40. f4 {[%clk 0:00:50]}  Rh5 {[%clk 0:00:14]} 41. Rb6 {[%clk 0:00:47]}  Kg7 {[%clk 0:00:14]} 42. Rb7+ {[%clk 0:00:47]}  Kh6 {[%clk 0:00:13]} 43. Rd7 {[%clk 0:00:48]}  g5 {[%clk 0:00:09]} 44. Rxd5 {[%clk 0:00:48]}  gxf4 {[%clk 0:00:10]} 45. Rxh5+ {[%clk 0:00:49]}  Kxh5 {[%clk 0:00:10]} 46. exf4 {[%clk 0:00:49]}  Kh4 {[%clk 0:00:10]} 47. Kf3 {[%clk 0:00:47]}  f5 {[%clk 0:00:09]} 48. g4 {[%clk 0:00:43]}  fxg4+ {[%clk 0:00:07]} 49. hxg4 {[%clk 0:00:44]}  h5 {[%clk 0:00:07]} 50. g5 {[%clk 0:00:43]}  Kh3 {[%clk 0:00:07]} 51. g6 {[%clk 0:00:44]}  Kh2 {[%clk 0:00:06]} 52. g7 {[%clk 0:00:44]}  h4 {[%clk 0:00:07]} 53. g8=Q {[%clk 0:00:43]}  h3 {[%clk 0:00:08]} 54. Kf2 {[%clk 0:00:41]}  Kh1 {[%clk 0:00:06]} 55. Qg1# {[%clk 0:00:41]} 1-0


[Site "https://www.chess.com"]

[Event "Titled Tuesday Blitz November 14 Late 2023"]
[White "Rich, Albert J"]
[Black "Kohler, Aran"]
[WhiteFideId "2028735"]
[BlackFideId "1002856"]
[WhiteElo "2490"]
[BlackElo "2280"]
[Result "0-1"]
[Round "4"]
[TimeControl "180+1"]
[Date "2023.11.14"]
[WhiteClock "0:01:57"]
[BlackClock "0:01:52"]
[Board "130"]

1. d4 {[%clk 0:03:00]}  Nf6 {[%clk 0:02:59]} 2. Nc3 {[%clk 0:02:59]}  d5 {[%clk 0:02:56]} 3. Bf4 {[%clk 0:02:59]}  Bf5 {[%clk 0:02:56]} 4. e3 {[%clk 0:02:59]}  e6 {[%clk 0:02:56]} 5. Nf3 {[%clk 0:02:59]}  a6 {[%clk 0:02:56]} 6. Ne5 {[%clk 0:02:58]}  c5 {[%clk 0:02:55]} 7. g4 {[%clk 0:02:58]}  cxd4 {[%clk 0:02:42]} 8. exd4 {[%clk 0:02:49]}  Bg6 {[%clk 0:02:32]} 9. h4 {[%clk 0:02:48]}  h5 {[%clk 0:02:15]} 10. Nxg6 {[%clk 0:02:41]}  fxg6 {[%clk 0:02:16]} 11. g5 {[%clk 0:02:42]}  Ne4 {[%clk 0:02:09]} 12. Bd3 {[%clk 0:02:37]}  Bb4 {[%clk 0:02:09]} 13. O-O {[%clk 0:02:35]}  O-O {[%clk 0:02:08]} 14. Bxb8 {[%clk 0:02:31]}  Qxb8 {[%clk 0:01:58]} 15. Nxe4 {[%clk 0:02:26]}  dxe4 {[%clk 0:01:58]} 16. Bxe4 {[%clk 0:02:27]}  Qf4 {[%clk 0:01:57]} 17. Bxg6 {[%clk 0:02:23]}  Bd6 {[%clk 0:01:52]} 18. Qxh5 {[%clk 0:01:57]}  Qh2# {[%clk 0:01:52]} 0-1


[Site "https://www.chess.com"]

[Event "Titled Tuesday Blitz November 14 Late 2023"]
[White "Golubenko, Valentina"]
[Black "Cruz Mendez, Jean Marco"]
[WhiteFideId "4501993"]
[BlackFideId "3526402"]
[WhiteElo "2278"]
[BlackElo "2473"]
[Result "1/2-1/2"]
[Round "4"]
[TimeControl "180+1"]
[Date "2023.11.14"]
[WhiteClock "0:00:08"]
[BlackClock "0:00:18"]
[Board "131"]

1. d4 {[%clk 0:03:00]}  Nf6 {[%clk 0:02:59]} 2. g3 {[%clk 0:03:00]}  e5 {[%clk 0:02:58]} 3. dxe5 {[%clk 0:03:00]}  Ng4 {[%clk 0:02:56]} 4. Nf3 {[%clk 0:02:59]}  Bc5 {[%clk 0:02:55]} 5. e3 {[%clk 0:02:59]}  Nc6 {[%clk 0:02:55]} 6. Bg2 {[%clk 0:02:57]}  Ngxe5 {[%clk 0:02:54]} 7. O-O {[%clk 0:02:57]}  d6 {[%clk 0:02:53]} 8. b3 {[%clk 0:02:54]}  Nxf3+ {[%clk 0:02:44]} 9. Bxf3 {[%clk 0:02:53]}  Qf6 {[%clk 0:02:44]} 10. c3 {[%clk 0:02:48]}  h5 {[%clk 0:02:43]} 11. h4 {[%clk 0:02:46]}  g5 {[%clk 0:02:42]} 12. b4 {[%clk 0:02:29]}  Bb6 {[%clk 0:02:37]} 13. Bxh5 {[%clk 0:02:19]}  gxh4 {[%clk 0:02:27]} 14. Qf3 {[%clk 0:02:12]}  Qg7 {[%clk 0:02:24]} 15. c4 {[%clk 0:01:45]}  Ne5 {[%clk 0:02:10]} 16. Qe2 {[%clk 0:01:11]}  hxg3 {[%clk 0:02:01]} 17. f4 {[%clk 0:01:05]}  Ng4 {[%clk 0:01:55]} 18. Bb2 {[%clk 0:01:02]}  Rxh5 {[%clk 0:01:09]} 19. Bxg7 {[%clk 0:01:01]}  Rh2 {[%clk 0:01:10]} 20. Qf3 {[%clk 0:00:46]}  Bxe3+ {[%clk 0:00:43]} 21. Qxe3+ {[%clk 0:00:46]}  Nxe3 {[%clk 0:00:44]} 22. Re1 {[%clk 0:00:46]}  f6 {[%clk 0:00:42]} 23. Bxf6 {[%clk 0:00:43]}  Kf7 {[%clk 0:00:42]} 24. Rxe3 {[%clk 0:00:39]}  Kxf6 {[%clk 0:00:34]} 25. Rxg3 {[%clk 0:00:39]}  Rc2 {[%clk 0:00:31]} 26. Nc3 {[%clk 0:00:37]}  Bf5 {[%clk 0:00:28]} 27. Nd5+ {[%clk 0:00:34]}  Kf7 {[%clk 0:00:27]} 28. Re1 {[%clk 0:00:28]}  Re8 {[%clk 0:00:20]} 29. Rxe8 {[%clk 0:00:17]}  Kxe8 {[%clk 0:00:21]} 30. Nxc7+ {[%clk 0:00:17]}  Kd7 {[%clk 0:00:20]} 31. Rg7+ {[%clk 0:00:16]}  Kc8 {[%clk 0:00:18]} 32. Nd5 {[%clk 0:00:15]}  Rxc4 {[%clk 0:00:18]} 33. Ne7+ {[%clk 0:00:15]}  Kc7 {[%clk 0:00:19]} 34. Nxf5+ {[%clk 0:00:16]}  Kc6 {[%clk 0:00:19]} 35. Rg6 {[%clk 0:00:16]}  Rxf4 {[%clk 0:00:19]} 36. Nxd6 {[%clk 0:00:15]}  Rxb4 {[%clk 0:00:18]} 37. Kf2 {[%clk 0:00:15]}  Rb2+ {[%clk 0:00:17]} 38. Ke3 {[%clk 0:00:16]}  Rxa2 {[%clk 0:00:18]} 39. Kd3 {[%clk 0:00:16]}  b5 {[%clk 0:00:18]} 40. Ne4+ {[%clk 0:00:15]}  Kb7 {[%clk 0:00:18]} 41. Nc5+ {[%clk 0:00:14]}  Kc7 {[%clk 0:00:18]} 42. Kc3 {[%clk 0:00:14]}  a6 {[%clk 0:00:18]} 43. Nxa6+ {[%clk 0:00:14]}  Kb7 {[%clk 0:00:18]} 44. Nc5+ {[%clk 0:00:13]}  Kc7 {[%clk 0:00:19]} 45. Kb4 {[%clk 0:00:14]}  Rb2+ {[%clk 0:00:20]} 46. Kc3 {[%clk 0:00:14]}  Ra2 {[%clk 0:00:20]} 47. Nd3 {[%clk 0:00:13]}  Ra3+ {[%clk 0:00:18]} 48. Kd4 {[%clk 0:00:12]}  Ra4+ {[%clk 0:00:18]} 49. Kc5 {[%clk 0:00:11]}  Ra3 {[%clk 0:00:19]} 50. Nb4 {[%clk 0:00:10]}  Rh3 {[%clk 0:00:20]} 51. Kxb5 {[%clk 0:00:10]}  Rh5+ {[%clk 0:00:20]} 52. Kc4 {[%clk 0:00:10]}  Kd7 {[%clk 0:00:20]} 53. Nd5 {[%clk 0:00:10]}  Rh4+ {[%clk 0:00:17]} 54. Kc5 {[%clk 0:00:11]}  Rh1 {[%clk 0:00:18]} 55. Rg7+ {[%clk 0:00:10]}  Ke8 {[%clk 0:00:17]} 56. Kd6 {[%clk 0:00:10]}  Kf8 {[%clk 0:00:18]} 57. Ra7 {[%clk 0:00:09]}  Re1 {[%clk 0:00:18]} 58. Nf6 {[%clk 0:00:09]}  Rd1+ {[%clk 0:00:17]} 59. Nd5 {[%clk 0:00:08]}  Re1 {[%clk 0:00:18]} 60. Ra8+ {[%clk 0:00:08]}  Kf7 {[%clk 0:00:18]} 61. Ra7+ {[%clk 0:00:08]}  Kf8 {[%clk 0:00:18]} 1/2-1/2


[Site "https://www.chess.com"]

[Event "Titled Tuesday Blitz November 14 Late 2023"]
[White "Kuegel, Tobias"]
[Black "Dodaro, Mattia"]
[WhiteFideId "4636295"]
[BlackFideId "28583400"]
[WhiteElo "2459"]
[BlackElo "2251"]
[Result "1-0"]
[Round "4"]
[TimeControl "180+1"]
[Date "2023.11.14"]
[WhiteClock "0:00:11"]
[BlackClock "0:00:00"]
[Board "132"]

1. e4 {[%clk 0:03:00]}  Nc6 {[%clk 0:02:46]} 2. Nf3 {[%clk 0:03:00]}  d6 {[%clk 0:02:38]} 3. d4 {[%clk 0:02:58]}  g6 {[%clk 0:02:37]} 4. d5 {[%clk 0:02:55]}  Nb8 {[%clk 0:02:37]} 5. c4 {[%clk 0:02:52]}  Bg7 {[%clk 0:02:37]} 6. Nc3 {[%clk 0:02:53]}  Bg4 {[%clk 0:02:37]} 7. Qb3 {[%clk 0:02:36]}  b6 {[%clk 0:02:27]} 8. a4 {[%clk 0:02:20]}  Bxf3 {[%clk 0:02:26]} 9. gxf3 {[%clk 0:02:20]}  a5 {[%clk 0:02:23]} 10. Nb5 {[%clk 0:02:14]}  Na6 {[%clk 0:02:21]} 11. h4 {[%clk 0:02:08]}  Nf6 {[%clk 0:02:19]} 12. Bh3 {[%clk 0:02:00]}  O-O {[%clk 0:02:17]} 13. Bd2 {[%clk 0:01:46]}  Nd7 {[%clk 0:02:02]} 14. Bxd7 {[%clk 0:01:42]}  Qxd7 {[%clk 0:02:01]} 15. h5 {[%clk 0:01:42]}  c6 {[%clk 0:01:52]} 16. Nc3 {[%clk 0:01:38]}  Nc5 {[%clk 0:01:45]} 17. Qc2 {[%clk 0:01:36]}  e6 {[%clk 0:01:37]} 18. O-O-O {[%clk 0:01:29]}  cxd5 {[%clk 0:01:34]} 19. exd5 {[%clk 0:01:25]}  exd5 {[%clk 0:01:25]} 20. Nxd5 {[%clk 0:01:21]}  Nxa4 {[%clk 0:01:22]} 21. b3 {[%clk 0:00:53]}  Nc5 {[%clk 0:01:13]} 22. Bc3 {[%clk 0:00:52]}  a4 {[%clk 0:01:05]} 23. Bxg7 {[%clk 0:00:33]}  Nxb3+ {[%clk 0:01:05]} 24. Qxb3 {[%clk 0:00:20]}  axb3 {[%clk 0:01:00]} 25. Nf6+ {[%clk 0:00:20]}  Kxg7 {[%clk 0:01:01]} 26. Nxd7 {[%clk 0:00:21]}  Rfe8 {[%clk 0:00:16]} 27. h6+ {[%clk 0:00:20]}  Kh8 {[%clk 0:00:15]} 28. Kb2 {[%clk 0:00:16]}  Ra2+ {[%clk 0:00:06]} 29. Kxb3 {[%clk 0:00:16]}  Ree2 {[%clk 0:00:05]} 30. Rb1 {[%clk 0:00:13]}  Rxf2 {[%clk 0:00:04]} 31. Rhe1 {[%clk 0:00:13]}  Rfe2 {[%clk 0:00:03]} 32. Rxe2 {[%clk 0:00:13]}  Rxe2 {[%clk 0:00:04]} 33. Ra1 {[%clk 0:00:13]}  Re8 {[%clk 0:00:04]} 34. Nf6 {[%clk 0:00:13]}  Rb8 {[%clk 0:00:03]} 35. Ra7 {[%clk 0:00:13]}  Rf8 {[%clk 0:00:01]} 36. Re7 {[%clk 0:00:12]}  g5 {[%clk 0:00:00]} 37. Kc3 {[%clk 0:00:11]} 1-0


[Site "https://www.chess.com"]

[Event "Titled Tuesday Blitz November 14 Late 2023"]
[White "Kovalevsky, Stanislav"]
[Black "Silvestre, Christian"]
[WhiteFideId "13508598"]
[BlackFideId "30956269"]
[WhiteElo "2456"]
[BlackElo "2234"]
[Result "1/2-1/2"]
[Round "4"]
[TimeControl "180+1"]
[Date "2023.11.14"]
[WhiteClock "0:00:13"]
[BlackClock "0:00:22"]
[Board "133"]

1. e4 {[%clk 0:03:00]}  c5 {[%clk 0:02:59]} 2. c3 {[%clk 0:03:01]}  d5 {[%clk 0:02:55]} 3. exd5 {[%clk 0:03:00]}  Qxd5 {[%clk 0:02:55]} 4. Nf3 {[%clk 0:03:01]}  Nf6 {[%clk 0:02:55]} 5. d4 {[%clk 0:03:01]}  Bf5 {[%clk 0:02:48]} 6. Be3 {[%clk 0:02:57]}  cxd4 {[%clk 0:02:39]} 7. Nxd4 {[%clk 0:02:56]}  Bg6 {[%clk 0:02:36]} 8. Bb5+ {[%clk 0:02:49]}  Nbd7 {[%clk 0:02:35]} 9. O-O {[%clk 0:02:42]}  a6 {[%clk 0:02:35]} 10. Be2 {[%clk 0:02:36]}  e6 {[%clk 0:02:30]} 11. Nd2 {[%clk 0:02:34]}  Qd6 {[%clk 0:02:26]} 12. Nc4 {[%clk 0:02:30]}  Qc7 {[%clk 0:02:25]} 13. Qa4 {[%clk 0:01:54]}  Be7 {[%clk 0:01:46]} 14. Qa5 {[%clk 0:01:15]}  Rc8 {[%clk 0:01:23]} 15. Rad1 {[%clk 0:00:53]}  O-O {[%clk 0:01:20]} 16. Qxc7 {[%clk 0:00:51]}  Rxc7 {[%clk 0:01:20]} 17. Nb3 {[%clk 0:00:44]}  Nd5 {[%clk 0:01:10]} 18. Bd4 {[%clk 0:00:39]}  Bc2 {[%clk 0:01:04]} 19. Rd2 {[%clk 0:00:36]}  Bxb3 {[%clk 0:01:04]} 20. axb3 {[%clk 0:00:37]}  Nc5 {[%clk 0:01:02]} 21. Bxc5 {[%clk 0:00:28]}  Bxc5 {[%clk 0:01:03]} 22. Bf3 {[%clk 0:00:27]}  Nf6 {[%clk 0:00:58]} 23. Rfd1 {[%clk 0:00:26]}  g6 {[%clk 0:00:56]} 24. Nd6 {[%clk 0:00:20]}  Bxd6 {[%clk 0:00:53]} 25. Rxd6 {[%clk 0:00:21]}  Rb8 {[%clk 0:00:41]} 26. Rb6 {[%clk 0:00:20]}  Nd7 {[%clk 0:00:39]} 27. Rbd6 {[%clk 0:00:20]}  Ne5 {[%clk 0:00:36]} 28. Be4 {[%clk 0:00:18]}  Kg7 {[%clk 0:00:36]} 29. f4 {[%clk 0:00:18]}  Ng4 {[%clk 0:00:34]} 30. g3 {[%clk 0:00:15]}  Nf6 {[%clk 0:00:31]} 31. Bf3 {[%clk 0:00:15]}  a5 {[%clk 0:00:31]} 32. Rb6 {[%clk 0:00:14]}  Nd7 {[%clk 0:00:29]} 33. Rbd6 {[%clk 0:00:14]}  Nc5 {[%clk 0:00:28]} 34. b4 {[%clk 0:00:13]}  axb4 {[%clk 0:00:29]} 35. cxb4 {[%clk 0:00:13]}  Na6 {[%clk 0:00:26]} 36. b5 {[%clk 0:00:13]}  Nc5 {[%clk 0:00:24]} 37. b4 {[%clk 0:00:14]}  Na4 {[%clk 0:00:22]} 38. Rd7 {[%clk 0:00:13]}  Rxd7 {[%clk 0:00:20]} 39. Rxd7 {[%clk 0:00:14]}  b6 {[%clk 0:00:20]} 40. g4 {[%clk 0:00:12]}  Nc3 {[%clk 0:00:20]} 41. f5 {[%clk 0:00:12]}  gxf5 {[%clk 0:00:19]} 42. gxf5 {[%clk 0:00:12]}  exf5 {[%clk 0:00:20]} 43. Kg2 {[%clk 0:00:12]}  Nxb5 {[%clk 0:00:20]} 44. Bd5 {[%clk 0:00:12]}  Rf8 {[%clk 0:00:18]} 45. Rb7 {[%clk 0:00:12]}  Nc3 {[%clk 0:00:18]} 46. Bc4 {[%clk 0:00:12]}  Rc8 {[%clk 0:00:16]} 47. Bxf7 {[%clk 0:00:10]}  Kf6 {[%clk 0:00:16]} 48. Bb3 {[%clk 0:00:09]}  b5 {[%clk 0:00:16]} 49. Rb6+ {[%clk 0:00:09]}  Ke5 {[%clk 0:00:16]} 50. Kf3 {[%clk 0:00:10]}  Rd8 {[%clk 0:00:16]} 51. Re6+ {[%clk 0:00:09]}  Kd4 {[%clk 0:00:15]} 52. Re7 {[%clk 0:00:10]}  Rd7 {[%clk 0:00:13]} 53. Rxd7+ {[%clk 0:00:10]}  Ke5 {[%clk 0:00:14]} 54. Rxh7 {[%clk 0:00:10]}  Ne4 {[%clk 0:00:14]} 55. Bc2 {[%clk 0:00:10]}  Ng5+ {[%clk 0:00:14]} 56. Ke3 {[%clk 0:00:10]}  Nxh7 {[%clk 0:00:15]} 57. Bd3 {[%clk 0:00:10]}  Nf6 {[%clk 0:00:15]} 58. Bxb5 {[%clk 0:00:10]}  Ng4+ {[%clk 0:00:14]} 59. Kf3 {[%clk 0:00:10]}  Nxh2+ {[%clk 0:00:14]} 60. Kg3 {[%clk 0:00:10]}  Ng4 {[%clk 0:00:15]} 61. Be2 {[%clk 0:00:09]}  Nf6 {[%clk 0:00:16]} 62. b5 {[%clk 0:00:10]}  Ne4+ {[%clk 0:00:17]} 63. Kf3 {[%clk 0:00:09]}  Nd6 {[%clk 0:00:16]} 64. Bd3 {[%clk 0:00:09]}  Nxb5 {[%clk 0:00:16]} 65. Bxb5 {[%clk 0:00:09]}  f4 {[%clk 0:00:16]} 66. Bc6 {[%clk 0:00:09]}  Kf5 {[%clk 0:00:17]} 67. Be4+ {[%clk 0:00:10]}  Kg5 {[%clk 0:00:18]} 68. Bd5 {[%clk 0:00:10]}  Kf6 {[%clk 0:00:19]} 69. Be4 {[%clk 0:00:11]}  Ke7 {[%clk 0:00:20]} 70. Bd5 {[%clk 0:00:12]}  Kd6 {[%clk 0:00:21]} 71. Be4 {[%clk 0:00:12]}  Kc5 {[%clk 0:00:22]} 72. Kxf4 {[%clk 0:00:13]} 1/2-1/2


[Site "https://www.chess.com"]

[Event "Titled Tuesday Blitz November 14 Late 2023"]
[White "Kustar, Sandor"]
[Black "Vila Dupla, Aurelio"]
[WhiteFideId "702900"]
[BlackFideId "2203383"]
[WhiteElo "2455"]
[BlackElo "2222"]
[Result "1-0"]
[Round "4"]
[TimeControl "180+1"]
[Date "2023.11.14"]
[WhiteClock "0:01:49"]
[BlackClock "0:01:50"]
[Board "134"]

1. Nf3 {[%clk 0:03:00]}  Nf6 {[%clk 0:02:48]} 2. c4 {[%clk 0:02:59]}  g6 {[%clk 0:02:47]} 3. g3 {[%clk 0:03:00]}  Bg7 {[%clk 0:02:47]} 4. Bg2 {[%clk 0:03:01]}  O-O {[%clk 0:02:47]} 5. d4 {[%clk 0:03:01]}  c6 {[%clk 0:02:48]} 6. O-O {[%clk 0:03:00]}  d5 {[%clk 0:02:48]} 7. Nbd2 {[%clk 0:03:00]}  dxc4 {[%clk 0:02:47]} 8. Nxc4 {[%clk 0:02:59]}  Be6 {[%clk 0:02:48]} 9. b3 {[%clk 0:02:58]}  Bd5 {[%clk 0:02:48]} 10. Bb2 {[%clk 0:02:55]}  a5 {[%clk 0:02:48]} 11. Rc1 {[%clk 0:02:44]}  a4 {[%clk 0:02:47]} 12. b4 {[%clk 0:02:44]}  a3 {[%clk 0:02:40]} 13. Ba1 {[%clk 0:02:44]}  b5 {[%clk 0:02:37]} 14. Nce5 {[%clk 0:02:37]}  Bxa2 {[%clk 0:02:36]} 15. Nxc6 {[%clk 0:02:30]}  Nxc6 {[%clk 0:02:36]} 16. Rxc6 {[%clk 0:02:31]}  Bd5 {[%clk 0:02:35]} 17. Rc5 {[%clk 0:02:29]}  e6 {[%clk 0:02:18]} 18. Rxb5 {[%clk 0:02:23]}  Qd7 {[%clk 0:02:15]} 19. Rc5 {[%clk 0:02:20]}  Rfb8 {[%clk 0:02:15]} 20. Ne5 {[%clk 0:02:17]}  Qa4 {[%clk 0:02:14]} 21. Nc6 {[%clk 0:02:13]}  Rb6 {[%clk 0:02:05]} 22. b5 {[%clk 0:01:51]}  Rxb5 {[%clk 0:01:50]} 23. Qxa4 {[%clk 0:01:49]} 1-0


[Site "https://www.chess.com"]

[Event "Titled Tuesday Blitz November 14 Late 2023"]
[White "Rodriguez Dominguez, Melissa"]
[Black "Kostiukov, Alexandr"]
[WhiteFideId "3517560"]
[BlackFideId "14108100"]
[WhiteElo "2222"]
[BlackElo "2446"]
[Result "1-0"]
[Round "4"]
[TimeControl "180+1"]
[Date "2023.11.14"]
[WhiteClock "0:00:07"]
[BlackClock "0:00:44"]
[Board "136"]

1. e4 {[%clk 0:03:00]}  c5 {[%clk 0:02:59]} 2. Nf3 {[%clk 0:03:01]}  g6 {[%clk 0:02:47]} 3. d4 {[%clk 0:02:59]}  cxd4 {[%clk 0:02:47]} 4. Nxd4 {[%clk 0:03:00]}  Bg7 {[%clk 0:02:47]} 5. c4 {[%clk 0:02:55]}  Nc6 {[%clk 0:02:47]} 6. Be3 {[%clk 0:02:53]}  Nf6 {[%clk 0:02:46]} 7. Nc3 {[%clk 0:02:53]}  O-O {[%clk 0:02:46]} 8. Be2 {[%clk 0:02:51]}  Nxd4 {[%clk 0:02:46]} 9. Bxd4 {[%clk 0:02:50]}  Qa5 {[%clk 0:02:47]} 10. O-O {[%clk 0:02:48]}  d6 {[%clk 0:02:47]} 11. f3 {[%clk 0:02:44]}  Be6 {[%clk 0:02:47]} 12. Rc1 {[%clk 0:02:38]}  Rfc8 {[%clk 0:02:46]} 13. b3 {[%clk 0:02:38]}  a6 {[%clk 0:02:44]} 14. Kh1 {[%clk 0:02:37]}  Rab8 {[%clk 0:02:38]} 15. Qd3 {[%clk 0:02:21]}  Nd7 {[%clk 0:02:36]} 16. Bxg7 {[%clk 0:02:17]}  Kxg7 {[%clk 0:02:37]} 17. f4 {[%clk 0:02:17]}  f6 {[%clk 0:02:36]} 18. Nd5 {[%clk 0:02:07]}  Bxd5 {[%clk 0:02:32]} 19. exd5 {[%clk 0:02:06]}  b5 {[%clk 0:02:07]} 20. Bg4 {[%clk 0:01:44]}  f5 {[%clk 0:02:05]} 21. Bxf5 {[%clk 0:01:38]}  gxf5 {[%clk 0:02:03]} 22. Qxf5 {[%clk 0:01:38]}  Nf6 {[%clk 0:02:02]} 23. g4 {[%clk 0:01:28]}  Qd8 {[%clk 0:01:43]} 24. g5 {[%clk 0:01:24]}  Nd7 {[%clk 0:01:35]} 25. Rg1 {[%clk 0:00:46]}  Nf8 {[%clk 0:01:30]} 26. h4 {[%clk 0:00:40]}  bxc4 {[%clk 0:01:29]} 27. bxc4 {[%clk 0:00:40]}  Qd7 {[%clk 0:01:27]} 28. Qd3 {[%clk 0:00:39]}  Ng6 {[%clk 0:01:23]} 29. h5 {[%clk 0:00:30]}  Nh4 {[%clk 0:01:18]} 30. g6 {[%clk 0:00:18]}  h6 {[%clk 0:01:13]} 31. Rcf1 {[%clk 0:00:14]}  Qf5 {[%clk 0:01:09]} 32. Qg3 {[%clk 0:00:13]}  Qxh5 {[%clk 0:01:07]} 33. Qh2 {[%clk 0:00:09]}  Rxc4 {[%clk 0:01:02]} 34. f5 {[%clk 0:00:09]}  Rbc8 {[%clk 0:01:01]} 35. f6+ {[%clk 0:00:09]}  exf6 {[%clk 0:01:01]} 36. Qh3 {[%clk 0:00:09]}  R8c7 {[%clk 0:00:51]} 37. Rxf6 {[%clk 0:00:09]}  Kxf6 {[%clk 0:00:50]} 38. Rf1+ {[%clk 0:00:09]}  Nf5 {[%clk 0:00:50]} 39. Qxh5 {[%clk 0:00:08]}  Rc1 {[%clk 0:00:44]} 40. Qxf5+ {[%clk 0:00:07]} 1-0


[Site "https://www.chess.com"]

[Event "Titled Tuesday Blitz November 14 Late 2023"]
[White "Nikologorsky, Matfei"]
[Black "Lopez Perdomo, Juan David"]
[WhiteFideId "24102474"]
[BlackFideId "4405137"]
[WhiteElo "2431"]
[BlackElo "2155"]
[Result "1-0"]
[Round "4"]
[TimeControl "180+1"]
[Date "2023.11.14"]
[WhiteClock "0:00:56"]
[BlackClock "0:00:43"]
[Board "139"]

1. e4 {[%clk 0:02:58]}  e6 {[%clk 0:02:49]} 2. d4 {[%clk 0:02:57]}  d5 {[%clk 0:02:41]} 3. Nd2 {[%clk 0:02:57]}  dxe4 {[%clk 0:02:39]} 4. Nxe4 {[%clk 0:02:58]}  Be7 {[%clk 0:02:39]} 5. Nf3 {[%clk 0:02:48]}  Nf6 {[%clk 0:02:40]} 6. Bd3 {[%clk 0:02:47]}  Nbd7 {[%clk 0:02:38]} 7. Qe2 {[%clk 0:02:45]}  b6 {[%clk 0:02:37]} 8. h4 {[%clk 0:02:36]}  Bb7 {[%clk 0:02:37]} 9. h5 {[%clk 0:02:35]}  Nxe4 {[%clk 0:02:38]} 10. Bxe4 {[%clk 0:02:35]}  Bxe4 {[%clk 0:02:38]} 11. Qxe4 {[%clk 0:02:36]}  h6 {[%clk 0:02:37]} 12. Bd2 {[%clk 0:02:15]}  O-O {[%clk 0:02:37]} 13. g4 {[%clk 0:02:11]}  Nf6 {[%clk 0:02:37]} 14. Qd3 {[%clk 0:02:11]}  Nxg4 {[%clk 0:02:37]} 15. Rg1 {[%clk 0:02:07]}  f5 {[%clk 0:02:37]} 16. Qe2 {[%clk 0:01:51]}  Rf6 {[%clk 0:02:30]} 17. O-O-O {[%clk 0:01:44]}  Qd5 {[%clk 0:02:30]} 18. Kb1 {[%clk 0:01:37]}  b5 {[%clk 0:02:25]} 19. Ne5 {[%clk 0:01:28]}  Qxd4 {[%clk 0:01:43]} 20. Nxg4 {[%clk 0:01:09]}  fxg4 {[%clk 0:01:41]} 21. Bc3 {[%clk 0:01:10]}  Qxf2 {[%clk 0:01:39]} 22. Qxg4 {[%clk 0:01:03]}  Rf7 {[%clk 0:01:38]} 23. Bxg7 {[%clk 0:00:59]}  Bg5 {[%clk 0:00:43]} 24. Bxh6 {[%clk 0:00:56]} 1-0


[Site "https://www.chess.com"]